Cogmind - Beta 13 X1 @@@ ROGUE MODE // 2023.08.04 @ 06:09:55 Player: CatPlusPlus Result: Destroyed by G-34 Mercenary with Small Laser Performance ------------- Evolutions (0) 0 Regions Visited (1) 200 Robots Destroyed (9) 45 Value Destroyed (218) 218 Prototype IDs (2) 40 Alien Tech Used (0) 0 Bonus (0) 0 TOTAL SCORE: 503 Bonus ------- None Cogmind --------- Core Integrity 0/250 Matter 295/300 Energy 134/160 System Corruption 16% Temperature Cool (7) Movement Walking (120) Location -10/Materials Parts ------- > --- POWER (1) -------- Light Nuclear Core > --- PROPULSION (2) --- Aluminum Leg > --- UTILITY (2) ------ (None) > --- WEAPON (2) ------- (None) > --- INVENTORY (5) ---- Light Ion Engine Light Treads Light Treads Heat Sink EM Pulse Gun Peak State ------------ > --- POWER ------------ Light Nuclear Core > --- PROPULSION ------- Aluminum Leg Aluminum Leg > --- UTILITY ---------- Small Storage Unit Seismic Detector > --- WEAPON ----------- Assault Rifle Mining Laser > --- INVENTORY -------- Light Ion Engine Light Treads Light Treads Wheel Wheel Improved Terrain Scanner EM Pulse Gun EM Pulse Gun [Rating: 10] Favorites ----------- Power Light Nuclear Core Engine Light Ion Engine Power Core Light Nuclear Core Propulsion Aluminum Leg Leg Aluminum Leg Utility Small Storage Unit Device Seismic Detector Storage Small Storage Unit Weapon Assault Rifle Energy Gun EM Pulse Gun Ballistic Gun Assault Rifle Special Weapon Mining Laser Build | -11 -10 ------- Run | Jun Mat Slots Evolved . | . . Power . | . . Propulsion . | . . Utility . | . . Weapon . | . . Parts Attached 9 | 3 6 Power 1 | . 1 Engine . | . . Core 1 | . 1 Reactor . | . . Propulsion 1 | . 1 Treads . | . . Leg 1 | . 1 Wheel . | . . Hover . | . . Flight . | . . Utility 2 | 2 . Device 2 | 2 . Storage . | . . Processor . | . . Hackware . | . . Protection . | . . Artifact . | . . Weapon 5 | 1 4 Energy Gun 2 | . 2 Energy Cannon . | . . Ballistic Gun 1 | 1 . Ballistic Cannon . | . . Launcher . | . . Special Weapon 2 | . 2 Impact Weapon . | . . Slashing Weapon . | . . Piercing Weapon . | . . Special Melee Weapon . | . . Unidentified Prototypes . | . . Parts Lost 7 | . 7 Power . | . . Propulsion 1 | . 1 Utility 3 | . 3 Weapon 3 | . 3 Highest Loss Streak 7 | . 7 To Critical Strikes . | . . Average Slot Usage (%) 96 | . 96 Engine 4 | . 4 Core 9 | . 9 Leg 27 | . 27 Device 13 | . 13 Storage 13 | . 13 Ballistic Gun 13 | . 13 Special Weapon 12 | . 12 Naked Turns . | . . Heaviest Build 15 | 13 15 Greatest Support 20 | 20 20 Greatest Overweight (x) . | . . Average Overweight (x) . | . . Largest Inventory Capacity 8 | 8 8 Average Capacity 7 | 8 7 Most Carried 8 | 8 8 Average Carried 7 | 6 7 Final Capacity 8 | 8 5 Final Carried 8 | 8 5 Class Distribution -------------------- 53% | Scavenger-Mutant 46% | Mutant Dominant Class ---------------- Scavenger-Mutant | -10/Materials Resources | -11 -10 ----------- Run | Jun Mat Matter Collected 476 | 274 202 Remotely . | . . Salvage Created 377 | 102 275 Parts 23 | 9 14 Haulers Intercepted 1 | . 1 Recyclers Shooed 1 | . 1 Parts Field Recycled . | . . Retrieved Matter . | . . Parts Self-Destructed . | . . Prevented . | . . Kills | -11 -10 ------- Run | Jun Mat Combat Hostiles Destroyed 5 | . 5 Guns 5 | . 5 Classes Destroyed 4 | 2 2 Tunneler 2 | 2 . Hauler 1 | . 1 Recycler 1 | 1 . Grunt 5 | . 5 Best Kill Streak 3 | 2 3 Combat Bots Only 3 | . 3 Max Kills in Single Turn 1 | 1 1 Gunslinging . | . . Exploded . | . . Melee . | . . Uniques/NPCs Destroyed . | . . Combat | -11 -10 -------- Run | Jun Mat Damage Taken 946 | . 946 Core 259 | . 259 Absorbed by Shields . | . . Core Remaining (%) 100 | 100 . Volleys Fired 72 | 15 57 Largest 2 | 1 2 Hottest 120 | 20 120 Shots Fired 83 | 15 68 Gun 54 | 15 39 Cannon . | . . Launcher . | . . Special 29 | . 29 Kinetic 45 | 15 30 Thermal 29 | . 29 Explosive . | . . Electromagnetic 9 | . 9 Robot Hit Streak 12 | 5 12 Robot Miss Streak 2 | 1 2 Penetration Max . | . . Secondary Targets . | . . Shots Hit Robots 38 | 11 27 Core Hits 16 | 4 12 Critical Kills . | . . Critical Parts Destroyed . | . . Critical Strikes . | . . Melee Attacks . | . . Impact . | . . Slashing . | . . Piercing . | . . Sneak Attacks . | . . Combat Hostiles . | . . Follow-up Attacks . | . . Damage Inflicted 536 | 132 404 Guns 498 | 132 366 Cannons . | . . Explosions . | . . Melee . | . . Ramming 14 | . 14 Kinetic 377 | 132 245 Thermal 24 | . 24 Explosive . | . . Electromagnetic 121 | . 121 Impact . | . . Slashing . | . . Piercing . | . . Highest Corruption 16 | . 16 Average Corruption 14 | . 14 Corruption Purged . | . . Corruption Blocked . | . . Effects 2 | . 2 Matter Fused 1 | . 1 Energy Discharges 1 | . 1 Overload Shots . | . . Overflow Damage . | . . Projectiles . | . . Explosions . | . . Melee . | . . Knockbacks . | . . Impact . | . . Kinetic . | . . Secondary . | . . Self-Inflicted Damage . | . . Shots . | . . Rammed . | . . Targets Rammed 8 | . 8 Kicked 8 | . 8 Crushed . | . . Highest Temperature 164 | . 164 Average Temperature 48 | . 48 Received Heat Transfer 225 | . 225 Siege Activations . | . . Robots Corrupted . | . . Combat Hostiles . | . . Parts Fried . | . . Impact Corruptions . | . . Robots Melted . | . . Combat Hostiles . | . . Parts Melted . | . . Heat Transferred 50 | . 50 Parts Sabotaged . | . . Parts Stolen . | . . Parts Stripped . | . . Power Chain Reactions . | . . Missiles Intercepted . | . . Alert | -11 -10 ------- Run | Jun Mat Peak Influence 119 | 15 119 Initial 9 | . 9 Average 35 | 7 38 Maximum Alert Level . | . . Low Security (%) 100 | 100 100 Level 1 . | . . Level 2 . | . . Level 3 . | . . Level 4 . | . . Level 5 . | . . High Security . | . . Max Security . | . . Squads Dispatched 1 | . 1 Investigation . | . . Extermination . | . . Reinforcement 1 | . 1 Assault . | . . Garrison . | . . Intercept . | . . Searches Triggered . | . . Construction Impeded . | . . Haulers Reinforced . | . . Active Scanning Responses . | . . Cargo Convoy Interrupts . | . . Stealth | -11 -10 --------- Run | Jun Mat Distress Signals . | . . Communications Jammed . | . . Distress Signals . | . . Times Spotted 8 | . 8 Peak Tracking Total 3 | . 3 Tactical Retreats . | . . Traps | -11 -10 ------- Run | Jun Mat Traps Triggered 1 | . 1 Indirectly . | . . Trap Hack Attempts . | . . Triggered . | . . Disarmed . | . . Reprogrammed . | . . Reused . | . . Traps Extracted . | . . Installed . | . . Triggered . | . . Machines | -11 -10 ---------- Run | Jun Mat Machines Disabled . | . . Max in Single Turn . | . . Machines Repaired . | . . Machines Sabotaged . | . . Overloaded Fab Kills . | . . Hacking | -11 -10 --------- Run | Jun Mat Machines Accessed 6 | . 6 Terminals 6 | . 6 Fabricators . | . . Repair Stations . | . . Recycling Units . | . . Scanalyzers . | . . Garrison Access . | . . Total Hacks 24 | . 24 Successful 16 | . 16 Failed 8 | . 8 Catastrophic 2 | . 2 Database Lockouts . | . . Manual 17 | . 17 Terminals 24 | . 24 Fabricators . | . . Repair Stations . | . . Recycling Units . | . . Scanalyzers . | . . Garrison Access . | . . Terminal Hacks 13 | . 13 Part Schematic 1 | . 1 Robot Analysis 2 | . 2 Prototype ID Bank 1 | . 1 Branch Access Points 1 | . 1 Terminal Index 1 | . 1 Locate Traps 3 | . 3 Maintenance Status 1 | . 1 Hauler Manifests 1 | . 1 Zone Layout 2 | . 2 Fabricator Hacks . | . . Repair Station Hacks . | . . Recycling Unit Hacks . | . . Scanalyzer . | . . Garrison Access Hacks . | . . Unauthorized Hacks 3 | . 3 Terminals 3 | . 3 Botnet 3 | . 3 Fabricators . | . . Repair Stations . | . . Recycling Units . | . . Scanalyzers . | . . Garrison Access . | . . Data Cores Recovered . | . . Used . | . . Hacking Detections 6 | . 6 Full Trace Events . | . . Feedback Events . | . . Feedback Blocked . | . . Robot Schematics Acquired . | . . Robots Built . | . . Authchips . | . . Time . | . . Total Robot Build Rating . | . . Part Schematics Acquired 1 | . 1 Parts Built . | . . Authchips . | . . Time . | . . Total Part Build Rating . | . . Parts Repaired . | . . Time . | . . Parts Recycled . | . . Recycled Matter . | . . Retrieved Matter . | . . Retrieved Components . | . . Parts Scanalyzed . | . . Part Schematics Acquired . | . . Parts Damaged . | . . Bothacking | -11 -10 ------------ Run | Jun Mat Used RIF Installer . | . . Robots Hacked . | . . Non-combat . | . . Combat . | . . Robot Hacks Applied . | . . Relay Couplers Released . | . . Fabnet Peak Effective % . | . . Robots Rewired . | . . Allies Hacked . | . . Hacks Repelled . | . . Allies | -11 -10 -------- Run | Jun Mat Total Allies . | . . Largest Group . | . . Highest-Rated Group . | . . Highest-Rated Ally . | . . Total Orders . | . . Ally Attacks . | . . Total Damage . | . . Kills . | . . Allies Corrupted . | . . Allies Melted . | . . Intel | -11 -10 ------- Run | Jun Mat Robot Analysis Total 2 | . 2 Derelict Logs Recovered . | . . Drone Launches . | . . Drone Recoveries . | . . Exploration | -11 -10 ------------- Run | Jun Mat Turns Passed 777 | 75 702 Spaces Moved 353 | 32 321 Core . | . . Treads . | . . Legs 353 | 32 321 Wheels . | . . Hover . | . . Flight . | . . Fastest Speed 120 | 120 120 Average Speed 120 | 120 120 Slowest Speed 120 | 120 120 Overloaded Moves . | . . Propulsion Burnouts . | . . Robots Hopped . | . . Cave-ins Triggered 4 | . 4 Exploration Rate (%) 20 | 4 37 Regions Visited 1 Branch Regions . Pre-discovered Areas . | . . Known Exits Taken . | . . Unknown Exits Taken 1 | 1 . Scrap Searched . | . . Spaces Dug 18 | . 18 Terrain Destroyed 27 | . 27 Melee . | . . Projectile 27 | . 27 AOE . | . . Terrain Rammed . | . . Walls Destroyed . | . . Machines Disabled . | . . Actions | -11 -10 --------- Run | Jun Mat Total 564 | 53 511 Wait 111 | . 111 Move 352 | 31 321 Hop . | . . Pick Up 5 | 2 3 Fast Attach 2 | 2 . Attach . | . . Detach 1 | 1 . Swap 7 | 1 6 Drop 6 | 1 5 Fire 72 | 15 57 Melee . | . . Ram . | . . Kick 8 | . 8 Crush . | . . Escape Stasis . | . . Rewire . | . . Trap . | . . Miscellaneous . | . . Route ------- -11/Junkyard -10/Materials (discovered 3 exits: [*Mat] / *Min x2) History --------- Turn | Location | Event 19 | -11/Junkyard | Discovered new exit (range 3) 76 | -11/Junkyard | Entered Materials 322 | -10/Materials | Discovered new exit (range 13) 322 | -10/Materials | Identified exit to Mines 451 | -10/Materials | Discovered new exit (range 9) 592 | -10/Materials | Build established: Scavenger-Mutant 740 | -10/Materials | Crushed by falling debris 740 | -10/Materials | Core integrity fell below 50% 742 | -10/Materials | Crushed by falling debris 742 | -10/Materials | System corruption reached 10% 747 | -10/Materials | Crushed by falling debris 748 | -10/Materials | Crushed by falling debris 748 | -10/Materials | Core integrity fell below 20% 778 | -10/Materials | Lost 7 parts (1n3u3w) 778 | -10/Materials | Destroyed by G-34 Mercenary with Small Laser Last Messages --------------- 00742_ The unstable cave ceiling collapses. 00742_ Crushed by falling debris. 00742_ EM Pulse Gun destroyed. 00742_ System corrupted by crushing effect (+1). 00742_ Aluminum Leg destroyed. 00742_ System corrupted by crushing effect (+3). 00742_ Assault Rifle destroyed. 00742_ System corrupted by crushing effect (+5). 00745_ Kicked U-05 Engineer. 00747_ The unstable cave ceiling collapses. 00747_ Crushed by falling debris. 00747_ Seismic Detector destroyed. 00747_ System corrupted by crushing effect (+4). 00748_ The unstable cave ceiling collapses. 00748_ Crushed by falling debris. 00748_ Kicked U-05 Engineer. 00751_ Kicked R-06 Scavenger. 00754_ System corrupted: Matter fused (-7). 00761_ Acquired 2 matter. 00777_ System corrupted: Energy discharge (-38). Map ----- +----------------------------------------------------+ | ?????### ??????# """ """ + #??????????? | | ???????? ??????# # #??????????? | | ???????? ??????###############/#### ##??????????? | | ??????????????????????# #### #???????????? | | ??????????????????????# #??# #???????????? | | ??????????????????????# ####+####????????? | | ??????????????????????# ## #????????? | | ??????????????????????# ## "T" #????????? | | ??????????????????????# ## #????????? | | ??????????????????????# ## #????????? | | ??????????????????????# ## #????????? | | ??????????????????????# ## #????????? | | ???????????????????########+########+####???????? | | ???????????????????? #???????? | | ?????????????????????##### < #???????? | | ????????????????????? #??# #???????? | | ????????????????????? #??####+#####T#####???????? | | ????????????????????? #???# ####???????????? | | ????????????????????? #???# "T" #??????????????? | | ????????????????????? #???# #??????????????? | | ????????????????????? #???# #??????????????? | | ????????????????????? ##### #??????########? | | ????????????????????? + + #??????# [ #? | | ?????????????######+### ####+###??????# #? | | ?????????? [[* g u #### ##########*""" #? | | ?????????? ^ [* @ +%""" #? | | ???????^^?o [* ##########=""" #? | | ?????????? #######?????####%*=[ #? | | ??????????? ^ #### ??????????????#*#######? | | ??????????? ?????#+??????????????#####????? | | ???????????? ????????????????????????###?????? | | ????????????""??????????????????????????????????? | | ????????????????????????????????????????????????? | | ????????????????????????????????????????????????? | | ????????????????????????????????????????????????? | | ????????????????????????????????????????????????? | | ????????????????????????????????????????????????? | | ????????????????????????????????????????????????? | | ????????????????????????????????????????????????? | | ????????????????????????????????????????????????? | | ????????????????????????????????????????????????? | | ????????????????????????????????????????????????? | | ????????????????????????????????????????????????? | | ????????????????????????????????????????????????? | | ????????????????????????????????????????????????? | | ????????????????????????????????????????????????? | | ????????????????????????????????????????????????? | | ????????????????????????????????????????????????? | | ????????????????????????????????????????????????? | | ????????????????????????????????????????????????? | +----------------------------------------------------+ Best States ------------- Heat Dissipation 25 Energy Generation 14 Energy Capacity 160 Matter Stores 300 Matter Capacity 300 Sight Range 16 Terrain Scan Density 10 Evasion (%) 55 Item Schematics ----------------- Huge Storage Unit | -10/Materials | Hacked Robot Schematics ------------------ None Fabricated ------------ Nothing Alien Tech Used ----------------- None Achievements -------------- None Challenges ------------ None Game ------ Seed ImpactShadeWheel Manual? 0 Play Time 00:16:15 Cumulative 45.9 hours Start 2023.08.01 @ 00:34:49 End 2023.08.04 @ 06:09:55 Sessions 8 Manual Loads 0 Difficulty Rogue Special Mode None Game No. 28 Rogue 28 Adventurer 0 Explorer 0 Win Type - Total 2 Types 2/0/0/0/0/0/0/0/0 Lore% 35 Gallery% 44 Achievement% 36 Wizard Run 0 Options --------- ASCII 0 Keyboard 1 Movement Numpad Keybinds 0 Fullscreen 2 Font 24/Terminus Map View 76x50 Tactical HUD 1 Map Filters NONE Filters NONE Steam 1 RUN: 3d5e7c60-9aa0-446e-a38a-9b4d36eacc81